{"text_format":"1","workbook":"xlsx","n_sheets":9,"sheets":["1.Kansilehti","2.Ympäristöluvan tarpeen lasken","3.Lietesäiliöt","4.Vähimmäisetäisyystaul","5.Peltoalan tarpeen laskenta","6.Lantavarastojen mitoitus","Sade- ja pesuvesi aputaulukko","Eläinyksikkökertoimet asetus ","Taulukot"],"not_rendered":{"charts":0,"images":3,"macros":1,"external_links":0,"defined_names":3,"comments":0,"pivot_tables":0},"unopened":[],"bounds":{"document_bytes":16777216,"sheet_cells":100000,"rows_first":2000,"rows_last":500,"rows_between":2000,"halvings":0,"cell_chars":16384,"cell_head_chars":4096},"cells_cut":0,"cells_raw":0,"read":"whole","date_system":"1900"}

{"sheet":"1.Kansilehti","index":0,"n_rows":44,"n_cols":2,"rows_kept":44,"cut":false,"hidden":false,"merged":[]}
[]
[]
[]
[]
[]
[]
[]
[]
[]
[]
[]
[]
[]
[]
[]
[]
[]
[]
[]
[]
[]
[]
[]
[]
[]
[]
[]
["Viljelijä"]
["Osoite"]
[]
["Puhelin"]
["S-posti"]
[]
[]
[]
[]
[]
["Asiantuntija"]
[null,"ProAgria Pohjois-Suomi ry."]
[]
["Osoite"]
[]
["Puhelin"]
["S-posti"]

{"sheet":"2.Ympäristöluvan tarpeen lasken","index":1,"n_rows":63,"n_cols":5,"rows_kept":63,"cut":false,"hidden":false,"merged":[[9,1,9,4]]}
[null,"Ympäristöluvan tarpeen laskelma"]
[]
[]
[]
[null,"ELÄINSUOJAN JA TURKISTARHAN LUPA- JA TOIMIVALTARAJAN SEKÄ ELÄINSUOJAN "]
[null,"ILMOITUKSENVARAISUUSRAJAN LASKEMISESSA KÄYTETTÄVÄT "]
[null,"ELÄINYKSIKKÖKERTOIMET "]
[]
[null,"Viljelijä"]
[null,"PJ Soronen Oy"]
[]
[null,"Eläinyksiköitä yhteensä",null,null,{"$f":"E23+E30+E35+E42+E54+E63","v":1616}]
[]
[null,"Eläinlaji","kpl","kerroin","yksiköt"]
[null,"Lypsylehmä",120,10.8,{"$f":"C15*D15","v":1296}]
[null,"Emolehmä",null,4.3,0]
[null,"Siitossonni (sonni > 2 v)",null,8.1,{"$f":"C17*D17","v":0}]
[null,"Hieho (12–24 kk)",46,4,{"$f":"C18*D18","v":184}]
[null,"Lihanauta (sonni 12–24 kk)",null,5.7,{"$f":"C19*D19","v":0}]
[null,"Lehmävasikka 6–12 kk",24,3.4,{"$f":"C20*D20","v":81.599999999999994}]
[null,"Sonnivasikka 6–12 kk",null,3.4,0]
[null,"Lehmävasikka < 6 kk, sonnivasikka < 6kk",32,1.7,54.4]
[null,"(lypsynavetta yht 540 - 3250 lupa kunnalta)",null,null,{"$f":"SUM(E15:E22)","v":1616}]
[null,"(lihanaudat 570 - 3250 lupa kunnalta)",0,null,{"$f":"SUM(E16:E22)","v":320}]
[null,"Hevonen yli 2 v",null,3.9,{"$f":"C25*D25","v":0}]
[null,"Poni yli 2 v, hevonen 1-2 v (Poni aikuisena 120-140 cm)",null,2.8,{"$f":"C26*D26","v":0}]
[null,"Pienponi yli 2 v, poni 1-2 v, hevonen alle 1 v (pienponi: eläimen säkäkorkeus täysikasvuisena <120 cm)",null,2,{"$f":"C27*D27","v":0}]
[null,"Pienponi 1-2 v, poni alle 1v (pienponi: eläimen säkäkorkeus täysikasvuisena <120 cm)",null,1.2,{"$f":"C28*D28","v":0}]
[null,"Pienponi alle 1 v (pienponi: eläimen säkäkorkeus täysikasvuisena <120 cm)",null,0.8,{"$f":"C29*D29","v":0}]
[null,"(yht. yli 234 - lupa kunnalta)",null,null,{"$f":"SUM(E25:E29)","v":0}]
[null,"Lammas ja karitsat sekä pässi",null,1.3,{"$f":"C31*D31","v":0}]
[null,"Vuohi ja kilit sekä pukki",null,1.3,{"$f":"C32*D32","v":0}]
[null,"Karitsat ja kilit 3-9 kk (Kasvatuksessa, kaksi kasvatuserää vuodessa), sis. yllä oleviin lukuihin"]
[null,"Karitsat ja kilit 6-9 kk (Kasvatuksessa, kaksi kasvatuserää vuodessa), sis. yllä oleviin lukuihin"]
[null,"(yht yli 150 - lupa kunnalta)",null,null,{"$f":"SUM(E31:E34)","v":0}]
[null,"Lihasika (eläinpaikkaa kohti, teuraspaino max 90 kg, jos suurempi käytetään jotilaan emakon arvoja)",null,1,{"$f":"C36*D36","v":0}]
[null,"Emakko ja porsaat (Normaali emakkosikala. Porsaat mukana noin 11 viikon ikään asti)",null,2.6,{"$f":"C37*D37","v":0}]
[null,"Emakko ja porsaat satelliittisikalassa (Koskee satelliittisikalaa. Lantamäärät emakkopaikkaa kohti, kun emakkopaikassa vähintään kahdeksan porsituskertaa vuodessa. Porsaat huomioidaan noin viiden viikon vieroitusikään asti)",null,2.6,0]
[null,"Joutilas emakko ",null,1.8,0]
[null,"Vierotettu porsas (Porsas välikasvatuksessa, ikävaihe 5-11 vkoa)",null,0.24,0]
[null,"Karju (täysikasvuinen) ",null,1.8,0]
[null,"(yht 260 - 780 lupa kunnalta)",null,null,{"$f":"SUM(E36:E41)","v":0}]
[null,"Broileri (Eläinpaikkaa kohti)",null,0.03,{"$f":"C43*D43","v":0}]
[null,"Munituskana",null,7.0000000000000007E-2,{"$f":"C44*D44","v":0}]
[null,"Broileriemo",null,7.0000000000000007E-2,0]
[null,"Kukko",null,0.1,0]
[null,"Emokalkkuna",null,0.14000000000000001,0]
[null,"Lihakalkkuna",null,0.12,0]
[null,"Kananuorikko",null,0.04,0]
[null,"Emoankka, liha-ankka, emohanhi, emofasaani, lihafasaani",null,7.0000000000000007E-2,0]
[null,"Emosorsa, lihasorsa",null,0.06,0]
[null,"Viiriäinen, helmikana",null,0.04,0]
[null,"Strutsi",null,0.9,0]
[null,"(yht 280 - 2100 lupa kunnalta)",null,null,{"$f":"SUM(E43:E53)","v":0}]
[null,"Kaninaaras poikasineen (Kaninaaraan elopaino noin 5 kg. Poikasien lisäksi kaniuros sisältyy naaraan eläinyksikkökertoimeen)",null,0.19,{"$f":"C55*D55","v":0}]
[null,"Biisoni",null,2.5,{"$f":"C56*D56","v":0}]
[null,"Villisika",null,0.9,0]
[null,"Minkki ja hilleri, pentu",null,null,0]
[null,"Minkki ja hilleri, siitosuros",null,null,0]
[null,"Kettu ja supikoira, siitosnaaras pentuineen",null,0.41,0]
[null,"Kettu ja supikoira, pentu",null,null,0]
[null,"Kettu ja supikoira, siitosuroa",null,null,0]
[null,"(yht 280 - 2100 lupa kunnalta)",null,null,{"$f":"SUM(E55:E62)","v":0}]

{"sheet":"3.Lietesäiliöt","index":2,"n_rows":51,"n_cols":18,"rows_kept":51,"cut":false,"hidden":false,"merged":[[3,2,3,3],[1,1,1,11],[3,12,3,13],[3,14,3,15],[3,16,3,17],[3,10,3,11],[3,8,3,9],[3,6,3,7],[3,4,3,5]]}
[]
["Viljelijä",{"$f":"'1.Kansilehti'!B28","v":0}]
[]
[null,null,"Lietesäiliö1",null,"Lietesäiliö2",null,"Lietesäiliö3",null,"Lietesäiliö4",null,"Lietesäiliö5",null,"Lietesäiliö6",null,"Lietesäiliö7",null,"Lietesäiliö8"]
[null,null,null,"Uusi",null,"Uusi",null,"Uusi",null,"Uusi",null,"Uusi",null,"Uusi",null,"Uusi",null,"Uusi"]
[null,null,"X","Olemassa oleva","x","Olemassa oleva",null,"Olemassa oleva",null,"Olemassa oleva",null,"Olemassa oleva",null,"Olemassa oleva",null,"Olemassa oleva",null,"Olemassa oleva"]
[null,null,null,"Tilakeskuksessa",null,"Tilakeskuksessa",null,"Tilakeskuksessa",null,"Tilakeskuksessa",null,"Tilakeskuksessa",null,"Tilakeskuksessa",null,"Tilakeskuksessa",null,"Tilakeskuksessa"]
["Säiliön kokonaistilavuus (m3)",null,null,600,null,3000,null,500,null,{"$f":"ROUNDUP(((J9/2)*(J9/2)*3.14)*J10,-1)","v":0},null,{"$f":"ROUNDUP(((L9/2)*(L9/2)*3.14)*L10,-1)","v":0},null,{"$f":"ROUNDUP(((N9/2)*(N9/2)*3.14)*N10,-1)","v":0},null,{"$f":"ROUNDUP(((P9/2)*(P9/2)*3.14)*P10,-1)","v":0},null,{"$f":"ROUNDUP(((R9/2)*(R9/2)*3.14)*R10,-1)","v":0}]
["Säiliön sisähalkaisja (m)",null,null,17,null,34]
["Säiliön hyötykorkeus (m)",null,null,2.4,null,3.4,null,1]
["Säiliön materiaali",null,null,"BETONI",null,"BETONI",null,"BETONI"]
["Onko katetta, jos niin minkälainen?",null,null,"Luonnollinen kuorettuma","x","Luonnollinen kuorettuma",null,"Luonnollinen kuorettuma",null,"Luonnollinen kuorettuma",null,"Luonnollinen kuorettuma",null,"Luonnollinen kuorettuma",null,"Luonnollinen kuorettuma",null,"Luonnollinen kuorettuma"]
[null,null,null,"Turve",null,"Turve",null,"Turve",null,"Turve",null,"Turve",null,"Turve",null,"Turve",null,"Turve"]
[null,null,null,"Styrox",null,"Styrox",null,"Styrox",null,"Styrox",null,"Styrox",null,"Styrox",null,"Styrox",null,"Styrox"]
[null,null,null,"EPS-rae",null,"EPS-rae",null,"EPS-rae",null,"EPS-rae",null,"EPS-rae",null,"EPS-rae",null,"EPS-rae",null,"EPS-rae"]
[null,null,null,"Betoni",null,"Betoni",null,"Betoni",null,"Betoni",null,"Betoni",null,"Betoni",null,"Betoni",null,"Betoni"]
[null,null,"x","Pelti",null,"Pelti","x","Pelti",null,"Pelti",null,"Pelti",null,"Pelti",null,"Pelti",null,"Pelti"]
[null,null,null,"Pressu",null,"Pressu",null,"Pressu",null,"Pressu",null,"Pressu",null,"Pressu",null,"Pressu",null,"Pressu"]
["Kuormausalueen materiaali ja pinta-ala m2",null,null,"BETONI, 125 M2"]
["Täyttötapa",null,null,"Lietekuilusta",null,"Lietekuilusta",null,"Lietekuilusta",null,"Lietekuilusta",null,"Lietekuilusta",null,"Lietekuilusta",null,"Lietekuilusta",null,"Lietekuilusta"]
[null,null,"X","Pumppu/pudotuskaivosta",null,"Pumppu/pudotuskaivosta",null,"Pumppu/pudotuskaivosta",null,"Pumppu/pudotuskaivosta",null,"Pumppu/pudotuskaivosta",null,"Pumppu/pudotuskaivosta",null,"Pumppu/pudotuskaivosta",null,"Pumppu/pudotuskaivosta"]
[null,null,null,"Lietesäiliön yläosaan",null,"Lietesäiliön yläosaan",null,"Lietesäiliön yläosaan",null,"Lietesäiliön yläosaan",null,"Lietesäiliön yläosaan",null,"Lietesäiliön yläosaan",null,"Lietesäiliön yläosaan",null,"Lietesäiliön yläosaan"]
[null,null,"x","Lietesäiliön alaosaan",null,"Lietesäiliön alaosaan",null,"Lietesäiliön alaosaan",null,"Lietesäiliön alaosaan",null,"Lietesäiliön alaosaan",null,"Lietesäiliön alaosaan",null,"Lietesäiliön alaosaan",null,"Lietesäiliön alaosaan"]
[]
["Sadeveden määrä (m3) / 0,3 m korkeutta",null,null,{"$f":"IF(C51=0,((D26*D26)*D27)*0.3,\"Ei sadevettä - katettu\")","v":"Ei sadevettä - katettu"},null,{"$f":"IF(E51=0,((F26*F26)*F27)*0.3,\"Ei sadevettä - katettu\")","v":272.238},null,{"$f":"IF(G51=0,((H26*H26)*H27)*0.3,\"Ei sadevettä - katettu\")","v":"Ei sadevettä - katettu"},null,{"$f":"IF(I51=0,((J26*J26)*J27)*0.3,\"Ei sadevettä - katettu\")","v":0},null,{"$f":"IF(K51=0,((L26*L26)*L27)*0.3,\"Ei sadevettä - katettu\")","v":0},null,{"$f":"IF(M51=0,((N26*N26)*N27)*0.3,\"Ei sadevettä - katettu\")","v":0},null,{"$f":"IF(O51=0,((P26*P26)*P27)*0.3,\"Ei sadevettä - katettu\")","v":0},null,{"$f":"IF(Q51=0,((R26*R26)*R27)*0.3,\"Ei sadevettä - katettu\")","v":0}]
[null,"säde",null,{"$f":"IF(D9>1,D9/2,0)","v":8.5},null,{"$f":"IF(F9>1,F9/2,0)","v":17},null,0,null,0,null,0,null,0,null,0,null,0]
[null,"Pii",null,3.14,null,3.14,null,3.14,null,3.14,null,3.14,null,3.14,null,3.14,null,3.14]
[]
[]
[]
["Yhteensä sadeveden määrä (m3)",null,null,{"$f":"SUM(D25:R25)","v":272.238}]
[]
["Olemasssa oleva lietsöiliö tilavuus (m3)",null,null,{"$f":"SUM(D8,F8,H8,J8,L8,N8,P8,R8)","v":4100}]
[]
[]
[]
[]
[]
[]
[]
[]
[]
[null,null,{"$f":"C12","v":0},{"$f":"IF(C43=\"x\",1)","v":false},{"$f":"E12","v":"x"},{"$f":"IF(E43=\"x\",1)","v":1},{"$f":"G12","v":0},{"$f":"IF(G43=\"x\",1)","v":false},{"$f":"I12","v":0},{"$f":"IF(I43=\"x\",1)","v":false},{"$f":"K12","v":0},{"$f":"IF(K43=\"x\",1)","v":false},{"$f":"M12","v":0},{"$f":"IF(M43=\"x\",1)","v":false},{"$f":"O12","v":0},{"$f":"IF(O43=\"x\",1)","v":false},{"$f":"Q12","v":0},{"$f":"IF(Q43=\"x\",1)","v":false}]
[null,null,{"$f":"C13","v":0},{"$f":"IF(C44=\"x\",1)","v":false},0,false,{"$f":"G13","v":0},{"$f":"IF(G44=\"x\",1)","v":false},{"$f":"I13","v":0},false,{"$f":"K13","v":0},{"$f":"IF(K44=\"x\",1)","v":false},{"$f":"M13","v":0},false,{"$f":"O13","v":0},{"$f":"IF(O44=\"x\",1)","v":false},{"$f":"Q13","v":0},false]
[null,null,0,false,0,false,{"$f":"G14","v":0},{"$f":"IF(G45=\"x\",1)","v":false},{"$f":"I14","v":0},false,{"$f":"K14","v":0},{"$f":"IF(K45=\"x\",1)","v":false},{"$f":"M14","v":0},false,{"$f":"O14","v":0},{"$f":"IF(O45=\"x\",1)","v":false},{"$f":"Q14","v":0},false]
[null,null,0,false,0,false,{"$f":"G15","v":0},{"$f":"IF(G46=\"x\",1)","v":false},{"$f":"I15","v":0},false,{"$f":"K15","v":0},{"$f":"IF(K46=\"x\",1)","v":false},{"$f":"M15","v":0},false,{"$f":"O15","v":0},{"$f":"IF(O46=\"x\",1)","v":false},{"$f":"Q15","v":0},false]
[null,null,0,false,0,false,{"$f":"G16","v":0},{"$f":"IF(G47=\"x\",1)","v":false},{"$f":"I16","v":0},false,{"$f":"K16","v":0},{"$f":"IF(K47=\"x\",1)","v":false},{"$f":"M16","v":0},false,{"$f":"O16","v":0},{"$f":"IF(O47=\"x\",1)","v":false},{"$f":"Q16","v":0},false]
[null,null,"x",1,0,false,{"$f":"G17","v":"x"},{"$f":"IF(G48=\"x\",1)","v":1},{"$f":"I17","v":0},false,{"$f":"K17","v":0},{"$f":"IF(K48=\"x\",1)","v":false},{"$f":"M17","v":0},false,{"$f":"O17","v":0},{"$f":"IF(O48=\"x\",1)","v":false},{"$f":"Q17","v":0},false]
[null,null,0,false,0,false,{"$f":"G18","v":0},{"$f":"IF(G49=\"x\",1)","v":false},{"$f":"I18","v":0},false,{"$f":"K18","v":0},{"$f":"IF(K49=\"x\",1)","v":false},{"$f":"M18","v":0},false,{"$f":"O18","v":0},{"$f":"IF(O49=\"x\",1)","v":false},{"$f":"Q18","v":0},false]
[null,null,{"$f":"SUM(D43:D46)","v":0},false,{"$f":"SUM(F43:F46)","v":1},false,{"$f":"SUM(H43:H46)","v":0},{"$f":"IF(G50=\"x\",1)","v":false},{"$f":"SUM(J43:J46)","v":0},false,{"$f":"SUM(L43:L46)","v":0},{"$f":"IF(K50=\"x\",1)","v":false},{"$f":"SUM(N43:N46)","v":0},false,{"$f":"SUM(P43:P46)","v":0},{"$f":"IF(O50=\"x\",1)","v":false},{"$f":"SUM(R43:R46)","v":0},false]
[null,null,{"$f":"SUM(D47:D49)","v":1},false,{"$f":"SUM(F47:F49)","v":0},false,{"$f":"SUM(H47:H49)","v":1},{"$f":"IF(G51=\"x\",1)","v":false},{"$f":"SUM(J47:J49)","v":0},false,{"$f":"SUM(L47:L49)","v":0},{"$f":"IF(K51=\"x\",1)","v":false},{"$f":"SUM(N47:N49)","v":0},false,{"$f":"SUM(P47:P49)","v":0},{"$f":"IF(O51=\"x\",1)","v":false},{"$f":"SUM(R47:R49)","v":0},false]

{"sheet":"4.Vähimmäisetäisyystaul","index":3,"n_rows":24,"n_cols":8,"rows_kept":24,"cut":false,"hidden":false,"merged":[[7,2,7,9]]}
[]
[null,"Liite 1"]
[]
[null,"Eläinsuojien vähimmäisetäisyystaulukot"]
[]
[null,"Taulukko 1. Nautojen eläinsuojat ja lannan varastointitilat"]
[]
[null,"Eläin-yksikkö-määrä","Eläinsuojan ja lannanvarastointitilan etäisyysvaatimukset metriä varastointitilojen kattamismenetelmään tai lannan käsittelymenetelmän mukaan"]
[null,null,"Lietelantalat kuorettumalla","Lietelantalat kuorettumalla ja käytössä lantakanavien jäähdytys","Lietelantaloissa kelluva tai telttamainen kate tai katto ja seinät","Lietelantaloissa kelluva tai telttamainen kate tai katto ja seinät sekä käytössä lantakanavien jäähdytys","Lietelantalassa tiivis kate, esimerkiksi betonikansi","Kuivikelanta, kuivikepohja tai kuivalanta, jossa virtsa eroteltuna,lantaloissa katto"]
[null,{"$f":"'2.Ympäristöluvan tarpeen lasken'!E12","v":1616}]
[null,"540–809",150,100,100,100,100,100]
[null,"810–989",200,150,150,100,100,150]
[null,"990–1 099",250,200,150,100,100,150]
[null,"1 100–1 649",300,250,200,150,100,200]
[null,"1 650–2 089",350,300,250,200,150,250]
[null,"2 090–2 475",400,350,250,200,150,300]
[null,"2 476–3 024",450,400,300,250,150,350]
[null,"3 025–3 229",500,450,350,250,200,400]
[]
[null,"Lypsylehmien soveltamisalan rajat (50–299 lypsylehmää) ovat 540–3 229 eläinyksikköä."]
[]
[null,"Emolehmien soveltamisalan rajat (130–599 emolehmää) ovat 559–2 576 eläinyksikköä."]
[]
[null,"Lihanautojen soveltamisalan rajat (100–499 lihanautaa) ovat 570–2 844 eläinyksikköä."]

{"sheet":"5.Peltoalan tarpeen laskenta","index":4,"n_rows":63,"n_cols":5,"rows_kept":63,"cut":false,"hidden":false,"merged":[[9,1,9,4],[7,2,7,4]]}
[]
[]
[null,{"$f":"'2.Ympäristöluvan tarpeen lasken'!B3","v":0},{"$f":"'2.Ympäristöluvan tarpeen lasken'!C3","v":0},{"$f":"'2.Ympäristöluvan tarpeen lasken'!D3","v":0},{"$f":"'2.Ympäristöluvan tarpeen lasken'!E3","v":0}]
[null,{"$f":"'2.Ympäristöluvan tarpeen lasken'!B4","v":0},{"$f":"'2.Ympäristöluvan tarpeen lasken'!C4","v":0},{"$f":"'2.Ympäristöluvan tarpeen lasken'!D4","v":0},{"$f":"'2.Ympäristöluvan tarpeen lasken'!E4","v":0}]
[null,null,{"$f":"'2.Ympäristöluvan tarpeen lasken'!C5","v":0},{"$f":"'2.Ympäristöluvan tarpeen lasken'!D5","v":0},{"$f":"'2.Ympäristöluvan tarpeen lasken'!E5","v":0}]
[null,null,{"$f":"'2.Ympäristöluvan tarpeen lasken'!C6","v":0},{"$f":"'2.Ympäristöluvan tarpeen lasken'!D6","v":0},{"$f":"'2.Ympäristöluvan tarpeen lasken'!E6","v":0}]
[null,null,{"$f":"'2.Ympäristöluvan tarpeen lasken'!C7","v":0},{"$f":"'2.Ympäristöluvan tarpeen lasken'!D7","v":0},{"$f":"'2.Ympäristöluvan tarpeen lasken'!E7","v":0}]
[null,{"$f":"'2.Ympäristöluvan tarpeen lasken'!B8","v":0},"Laskuri pyöristää ylöspäin !!!"]
[null,{"$f":"'2.Ympäristöluvan tarpeen lasken'!B9","v":"Viljelijä"},{"$f":"'2.Ympäristöluvan tarpeen lasken'!C9","v":0},{"$f":"'2.Ympäristöluvan tarpeen lasken'!D9","v":0},{"$f":"'2.Ympäristöluvan tarpeen lasken'!E9","v":0}]
[null,{"$f":"'2.Ympäristöluvan tarpeen lasken'!B10:E10","v":"PJ Soronen Oy"}]
[null,{"$f":"'2.Ympäristöluvan tarpeen lasken'!B11","v":0},{"$f":"'2.Ympäristöluvan tarpeen lasken'!C11","v":0},{"$f":"'2.Ympäristöluvan tarpeen lasken'!D11","v":0},{"$f":"'2.Ympäristöluvan tarpeen lasken'!E11","v":0}]
[null,"Peltoalan tarve lannan levitykseen, ha",{"$f":"'2.Ympäristöluvan tarpeen lasken'!C12","v":0},{"$f":"'2.Ympäristöluvan tarpeen lasken'!D12","v":0},{"$f":"E23+E30+E42+E54+E63","v":116}]
[null,{"$f":"'2.Ympäristöluvan tarpeen lasken'!B13","v":0},{"$f":"'2.Ympäristöluvan tarpeen lasken'!C13","v":0},{"$f":"'2.Ympäristöluvan tarpeen lasken'!D13","v":0},{"$f":"'2.Ympäristöluvan tarpeen lasken'!E13","v":0}]
[null,{"$f":"'2.Ympäristöluvan tarpeen lasken'!B14","v":"Eläinlaji"},{"$f":"'2.Ympäristöluvan tarpeen lasken'!C14","v":"kpl"},{"$f":"'2.Ympäristöluvan tarpeen lasken'!D14","v":"kerroin"},"ha"]
[null,{"$f":"'2.Ympäristöluvan tarpeen lasken'!B15","v":"Lypsylehmä"},{"$f":"'2.Ympäristöluvan tarpeen lasken'!C15","v":120},1.3,{"$f":"CEILING(C15/D15,1)","v":93}]
[null,{"$f":"'2.Ympäristöluvan tarpeen lasken'!B16","v":"Emolehmä"},{"$f":"'2.Ympäristöluvan tarpeen lasken'!C16","v":0},2.5,{"$f":"CEILING(C16/D16,1)","v":0}]
[null,{"$f":"'2.Ympäristöluvan tarpeen lasken'!B17","v":"Siitossonni (sonni > 2 v)"},{"$f":"'2.Ympäristöluvan tarpeen lasken'!C17","v":0},2.5,0]
[null,{"$f":"'2.Ympäristöluvan tarpeen lasken'!B18","v":"Hieho (12–24 kk)"},{"$f":"'2.Ympäristöluvan tarpeen lasken'!C18","v":46},3.5,14]
[null,{"$f":"'2.Ympäristöluvan tarpeen lasken'!B19","v":"Lihanauta (sonni 12–24 kk)"},{"$f":"'2.Ympäristöluvan tarpeen lasken'!C19","v":0},2.7,{"$f":"CEILING(C19/D19,1)","v":0}]
[null,{"$f":"'2.Ympäristöluvan tarpeen lasken'!B20","v":"Lehmävasikka 6–12 kk"},{"$f":"'2.Ympäristöluvan tarpeen lasken'!C20","v":24},4.5,6]
[null,{"$f":"'2.Ympäristöluvan tarpeen lasken'!B21","v":"Sonnivasikka 6–12 kk"},{"$f":"'2.Ympäristöluvan tarpeen lasken'!C21","v":0},3.5,0]
[null,{"$f":"'2.Ympäristöluvan tarpeen lasken'!B22","v":"Lehmävasikka < 6 kk, sonnivasikka < 6kk"},{"$f":"'2.Ympäristöluvan tarpeen lasken'!C22","v":32},11,3]
[null,"Tarvittava lannan levitykseen soveltuva peltoala",{"$f":"'2.Ympäristöluvan tarpeen lasken'!C23","v":0},{"$f":"'2.Ympäristöluvan tarpeen lasken'!D23","v":0},{"$f":"SUM(E15:E22)","v":116}]
[]
[null,{"$f":"'2.Ympäristöluvan tarpeen lasken'!B25","v":"Hevonen yli 2 v"},{"$f":"'2.Ympäristöluvan tarpeen lasken'!C25","v":0},{"$f":"'2.Ympäristöluvan tarpeen lasken'!D25","v":3.9},{"$f":"CEILING(C25/D25,1)","v":0}]
[null,{"$f":"'2.Ympäristöluvan tarpeen lasken'!B26","v":"Poni yli 2 v, hevonen 1-2 v (Poni aikuisena 120-140 cm)"},{"$f":"'2.Ympäristöluvan tarpeen lasken'!C26","v":0},{"$f":"'2.Ympäristöluvan tarpeen lasken'!D26","v":2.8},0]
[null,{"$f":"'2.Ympäristöluvan tarpeen lasken'!B27","v":"Pienponi yli 2 v, poni 1-2 v, hevonen alle 1 v (pienponi: eläimen säkäkorkeus täysikasvuisena <120 cm)"},{"$f":"'2.Ympäristöluvan tarpeen lasken'!C27","v":0},{"$f":"'2.Ympäristöluvan tarpeen lasken'!D27","v":2},0]
[null,{"$f":"'2.Ympäristöluvan tarpeen lasken'!B28","v":"Pienponi 1-2 v, poni alle 1v (pienponi: eläimen säkäkorkeus täysikasvuisena <120 cm)"},{"$f":"'2.Ympäristöluvan tarpeen lasken'!C28","v":0},{"$f":"'2.Ympäristöluvan tarpeen lasken'!D28","v":1.2},0]
[null,{"$f":"'2.Ympäristöluvan tarpeen lasken'!B29","v":"Pienponi alle 1 v (pienponi: eläimen säkäkorkeus täysikasvuisena <120 cm)"},{"$f":"'2.Ympäristöluvan tarpeen lasken'!C29","v":0},{"$f":"'2.Ympäristöluvan tarpeen lasken'!D29","v":0.8},0]
[null,"Tarvittava lannan levitykseen soveltuva peltoala",{"$f":"'2.Ympäristöluvan tarpeen lasken'!C30","v":0},{"$f":"'2.Ympäristöluvan tarpeen lasken'!D30","v":0},{"$f":"SUM(E25:E29)","v":0}]
[null,{"$f":"'2.Ympäristöluvan tarpeen lasken'!B31","v":"Lammas ja karitsat sekä pässi"},{"$f":"'2.Ympäristöluvan tarpeen lasken'!C31","v":0},{"$f":"'2.Ympäristöluvan tarpeen lasken'!D31","v":1.3},{"$f":"'2.Ympäristöluvan tarpeen lasken'!E31","v":0}]
[null,{"$f":"'2.Ympäristöluvan tarpeen lasken'!B32","v":"Vuohi ja kilit sekä pukki"},{"$f":"'2.Ympäristöluvan tarpeen lasken'!C32","v":0},{"$f":"'2.Ympäristöluvan tarpeen lasken'!D32","v":1.3},{"$f":"'2.Ympäristöluvan tarpeen lasken'!E32","v":0}]
[null,{"$f":"'2.Ympäristöluvan tarpeen lasken'!B33","v":"Karitsat ja kilit 3-9 kk (Kasvatuksessa, kaksi kasvatuserää vuodessa), sis. yllä oleviin lukuihin"},{"$f":"'2.Ympäristöluvan tarpeen lasken'!C33","v":0},{"$f":"'2.Ympäristöluvan tarpeen lasken'!D33","v":0},{"$f":"'2.Ympäristöluvan tarpeen lasken'!E33","v":0}]
[null,{"$f":"'2.Ympäristöluvan tarpeen lasken'!B34","v":"Karitsat ja kilit 6-9 kk (Kasvatuksessa, kaksi kasvatuserää vuodessa), sis. yllä oleviin lukuihin"},{"$f":"'2.Ympäristöluvan tarpeen lasken'!C34","v":0},{"$f":"'2.Ympäristöluvan tarpeen lasken'!D34","v":0},{"$f":"'2.Ympäristöluvan tarpeen lasken'!E34","v":0}]
[null,{"$f":"'2.Ympäristöluvan tarpeen lasken'!B35","v":"(yht yli 150 - lupa kunnalta)"},{"$f":"'2.Ympäristöluvan tarpeen lasken'!C35","v":0},{"$f":"'2.Ympäristöluvan tarpeen lasken'!D35","v":0},{"$f":"'2.Ympäristöluvan tarpeen lasken'!E35","v":0}]
[null,{"$f":"'2.Ympäristöluvan tarpeen lasken'!B36","v":"Lihasika (eläinpaikkaa kohti, teuraspaino max 90 kg, jos suurempi käytetään jotilaan emakon arvoja)"},{"$f":"'2.Ympäristöluvan tarpeen lasken'!C36","v":0},{"$f":"'2.Ympäristöluvan tarpeen lasken'!D36","v":1},{"$f":"'2.Ympäristöluvan tarpeen lasken'!E36","v":0}]
[null,{"$f":"'2.Ympäristöluvan tarpeen lasken'!B37","v":"Emakko ja porsaat (Normaali emakkosikala. Porsaat mukana noin 11 viikon ikään asti)"},{"$f":"'2.Ympäristöluvan tarpeen lasken'!C37","v":0},{"$f":"'2.Ympäristöluvan tarpeen lasken'!D37","v":2.6},{"$f":"'2.Ympäristöluvan tarpeen lasken'!E37","v":0}]
[null,{"$f":"'2.Ympäristöluvan tarpeen lasken'!B38","v":"Emakko ja porsaat satelliittisikalassa (Koskee satelliittisikalaa. Lantamäärät emakkopaikkaa kohti, kun emakkopaikassa vähintään kahdeksan porsituskertaa vuodessa. Porsaat huomioidaan noin viiden viikon vieroitusikään asti)"},{"$f":"'2.Ympäristöluvan tarpeen lasken'!C38","v":0},{"$f":"'2.Ympäristöluvan tarpeen lasken'!D38","v":2.6},{"$f":"'2.Ympäristöluvan tarpeen lasken'!E38","v":0}]
[null,{"$f":"'2.Ympäristöluvan tarpeen lasken'!B39","v":"Joutilas emakko "},{"$f":"'2.Ympäristöluvan tarpeen lasken'!C39","v":0},{"$f":"'2.Ympäristöluvan tarpeen lasken'!D39","v":1.8},{"$f":"'2.Ympäristöluvan tarpeen lasken'!E39","v":0}]
[null,{"$f":"'2.Ympäristöluvan tarpeen lasken'!B40","v":"Vierotettu porsas (Porsas välikasvatuksessa, ikävaihe 5-11 vkoa)"},{"$f":"'2.Ympäristöluvan tarpeen lasken'!C40","v":0},{"$f":"'2.Ympäristöluvan tarpeen lasken'!D40","v":0.24},{"$f":"'2.Ympäristöluvan tarpeen lasken'!E40","v":0}]
[null,{"$f":"'2.Ympäristöluvan tarpeen lasken'!B41","v":"Karju (täysikasvuinen) "},{"$f":"'2.Ympäristöluvan tarpeen lasken'!C41","v":0},{"$f":"'2.Ympäristöluvan tarpeen lasken'!D41","v":1.8},{"$f":"'2.Ympäristöluvan tarpeen lasken'!E41","v":0}]
[null,"Tarvittava lannan levitykseen soveltuva peltoala",{"$f":"'2.Ympäristöluvan tarpeen lasken'!C42","v":0},{"$f":"'2.Ympäristöluvan tarpeen lasken'!D42","v":0},{"$f":"SUM(E34:E41)","v":0}]
[null,{"$f":"'2.Ympäristöluvan tarpeen lasken'!B43","v":"Broileri (Eläinpaikkaa kohti)"},{"$f":"'2.Ympäristöluvan tarpeen lasken'!C43","v":0},{"$f":"'2.Ympäristöluvan tarpeen lasken'!D43","v":0.03},{"$f":"'2.Ympäristöluvan tarpeen lasken'!E43","v":0}]
[null,{"$f":"'2.Ympäristöluvan tarpeen lasken'!B44","v":"Munituskana"},{"$f":"'2.Ympäristöluvan tarpeen lasken'!C44","v":0},{"$f":"'2.Ympäristöluvan tarpeen lasken'!D44","v":7.0000000000000007E-2},{"$f":"'2.Ympäristöluvan tarpeen lasken'!E44","v":0}]
[null,{"$f":"'2.Ympäristöluvan tarpeen lasken'!B45","v":"Broileriemo"},{"$f":"'2.Ympäristöluvan tarpeen lasken'!C45","v":0},{"$f":"'2.Ympäristöluvan tarpeen lasken'!D45","v":7.0000000000000007E-2},{"$f":"'2.Ympäristöluvan tarpeen lasken'!E45","v":0}]
[null,{"$f":"'2.Ympäristöluvan tarpeen lasken'!B46","v":"Kukko"},{"$f":"'2.Ympäristöluvan tarpeen lasken'!C46","v":0},{"$f":"'2.Ympäristöluvan tarpeen lasken'!D46","v":0.1},{"$f":"'2.Ympäristöluvan tarpeen lasken'!E46","v":0}]
[null,{"$f":"'2.Ympäristöluvan tarpeen lasken'!B47","v":"Emokalkkuna"},{"$f":"'2.Ympäristöluvan tarpeen lasken'!C47","v":0},{"$f":"'2.Ympäristöluvan tarpeen lasken'!D47","v":0.14000000000000001},{"$f":"'2.Ympäristöluvan tarpeen lasken'!E47","v":0}]
[null,{"$f":"'2.Ympäristöluvan tarpeen lasken'!B48","v":"Lihakalkkuna"},{"$f":"'2.Ympäristöluvan tarpeen lasken'!C48","v":0},{"$f":"'2.Ympäristöluvan tarpeen lasken'!D48","v":0.12},{"$f":"'2.Ympäristöluvan tarpeen lasken'!E48","v":0}]
[null,{"$f":"'2.Ympäristöluvan tarpeen lasken'!B49","v":"Kananuorikko"},{"$f":"'2.Ympäristöluvan tarpeen lasken'!C49","v":0},{"$f":"'2.Ympäristöluvan tarpeen lasken'!D49","v":0.04},{"$f":"'2.Ympäristöluvan tarpeen lasken'!E49","v":0}]
[null,{"$f":"'2.Ympäristöluvan tarpeen lasken'!B50","v":"Emoankka, liha-ankka, emohanhi, emofasaani, lihafasaani"},{"$f":"'2.Ympäristöluvan tarpeen lasken'!C50","v":0},{"$f":"'2.Ympäristöluvan tarpeen lasken'!D50","v":7.0000000000000007E-2},{"$f":"'2.Ympäristöluvan tarpeen lasken'!E50","v":0}]
[null,{"$f":"'2.Ympäristöluvan tarpeen lasken'!B51","v":"Emosorsa, lihasorsa"},{"$f":"'2.Ympäristöluvan tarpeen lasken'!C51","v":0},{"$f":"'2.Ympäristöluvan tarpeen lasken'!D51","v":0.06},{"$f":"'2.Ympäristöluvan tarpeen lasken'!E51","v":0}]
[null,{"$f":"'2.Ympäristöluvan tarpeen lasken'!B52","v":"Viiriäinen, helmikana"},{"$f":"'2.Ympäristöluvan tarpeen lasken'!C52","v":0},{"$f":"'2.Ympäristöluvan tarpeen lasken'!D52","v":0.04},{"$f":"'2.Ympäristöluvan tarpeen lasken'!E52","v":0}]
[null,{"$f":"'2.Ympäristöluvan tarpeen lasken'!B53","v":"Strutsi"},{"$f":"'2.Ympäristöluvan tarpeen lasken'!C53","v":0},{"$f":"'2.Ympäristöluvan tarpeen lasken'!D53","v":0.9},{"$f":"'2.Ympäristöluvan tarpeen lasken'!E53","v":0}]
[null,"Tarvittava lannan levitykseen soveltuva peltoala",{"$f":"'2.Ympäristöluvan tarpeen lasken'!C54","v":0},{"$f":"'2.Ympäristöluvan tarpeen lasken'!D54","v":0},{"$f":"SUM(E46:E53)","v":0}]
[null,{"$f":"'2.Ympäristöluvan tarpeen lasken'!B55","v":"Kaninaaras poikasineen (Kaninaaraan elopaino noin 5 kg. Poikasien lisäksi kaniuros sisältyy naaraan eläinyksikkökertoimeen)"},{"$f":"'2.Ympäristöluvan tarpeen lasken'!C55","v":0},{"$f":"'2.Ympäristöluvan tarpeen lasken'!D55","v":0.19},{"$f":"'2.Ympäristöluvan tarpeen lasken'!E55","v":0}]
[null,{"$f":"'2.Ympäristöluvan tarpeen lasken'!B56","v":"Biisoni"},{"$f":"'2.Ympäristöluvan tarpeen lasken'!C56","v":0},{"$f":"'2.Ympäristöluvan tarpeen lasken'!D56","v":2.5},{"$f":"'2.Ympäristöluvan tarpeen lasken'!E56","v":0}]
[null,{"$f":"'2.Ympäristöluvan tarpeen lasken'!B57","v":"Villisika"},{"$f":"'2.Ympäristöluvan tarpeen lasken'!C57","v":0},{"$f":"'2.Ympäristöluvan tarpeen lasken'!D57","v":0.9},{"$f":"'2.Ympäristöluvan tarpeen lasken'!E57","v":0}]
[null,{"$f":"'2.Ympäristöluvan tarpeen lasken'!B58","v":"Minkki ja hilleri, pentu"},{"$f":"'2.Ympäristöluvan tarpeen lasken'!C58","v":0},{"$f":"'2.Ympäristöluvan tarpeen lasken'!D58","v":0},{"$f":"'2.Ympäristöluvan tarpeen lasken'!E58","v":0}]
[null,{"$f":"'2.Ympäristöluvan tarpeen lasken'!B59","v":"Minkki ja hilleri, siitosuros"},{"$f":"'2.Ympäristöluvan tarpeen lasken'!C59","v":0},{"$f":"'2.Ympäristöluvan tarpeen lasken'!D59","v":0},{"$f":"'2.Ympäristöluvan tarpeen lasken'!E59","v":0}]
[null,{"$f":"'2.Ympäristöluvan tarpeen lasken'!B60","v":"Kettu ja supikoira, siitosnaaras pentuineen"},{"$f":"'2.Ympäristöluvan tarpeen lasken'!C60","v":0},{"$f":"'2.Ympäristöluvan tarpeen lasken'!D60","v":0.41},{"$f":"'2.Ympäristöluvan tarpeen lasken'!E60","v":0}]
[null,{"$f":"'2.Ympäristöluvan tarpeen lasken'!B61","v":"Kettu ja supikoira, pentu"},{"$f":"'2.Ympäristöluvan tarpeen lasken'!C61","v":0},{"$f":"'2.Ympäristöluvan tarpeen lasken'!D61","v":0},{"$f":"'2.Ympäristöluvan tarpeen lasken'!E61","v":0}]
[null,{"$f":"'2.Ympäristöluvan tarpeen lasken'!B62","v":"Kettu ja supikoira, siitosuroa"},{"$f":"'2.Ympäristöluvan tarpeen lasken'!C62","v":0},{"$f":"'2.Ympäristöluvan tarpeen lasken'!D62","v":0},{"$f":"'2.Ympäristöluvan tarpeen lasken'!E62","v":0}]
[null,"Tarvittava lannan levitykseen soveltuva peltoala",{"$f":"'2.Ympäristöluvan tarpeen lasken'!C63","v":0},{"$f":"'2.Ympäristöluvan tarpeen lasken'!D63","v":0},{"$f":"SUM(E55:E62)","v":0}]

{"sheet":"6.Lantavarastojen mitoitus","index":5,"n_rows":82,"n_cols":14,"rows_kept":82,"cut":false,"hidden":false,"merged":[[13,10,13,11],[13,12,13,13],[1,2,1,13],[13,4,13,6],[13,7,13,9],[12,4,12,5]]}
[null,"Lantavarastojen mitoitus"]
[null,"Viljelijä",{"$f":"'2.Ympäristöluvan tarpeen lasken'!$B$10","v":"PJ Soronen Oy"}]
[null,"Naudat",null,null,null,{"$f":"ROUNDUP(F25,-1)","v":3120},{"$f":"IF(F3>0,\"m3\",0)","v":"m3"},null,323,{"$f":"IF(I3>0,\"yksikköä\",0)","v":"yksikköä"},null,{"$f":"ROUNDUP(L25,-2)","v":0},{"$f":"IF(L3>0,\"yksikköä\",0)","v":0}]
[null,"Hevoset",null,null,null,null,{"$f":"IF(F4>0,\"yksikköä\",0)","v":0},null,{"$f":"ROUNDUP(I33,-2)","v":0},{"$f":"IF(I4>0,\"yksikköä\",0)","v":0},null,null,{"$f":"IF(L4>0,\"yksikköä\",0)","v":0}]
[null,"Lampaat ja vuohet",null,null,null,null,0,null,{"$f":"ROUNDUP(I67,-2)","v":0},0,null,null,0]
[null,"Siat",null,null,null,{"$f":"F47","v":0},0,null,{"$f":"I47","v":0},0,null,{"$f":"ROUNDUP(L47,-2)","v":0},0]
[null,"Kanat ja muut linnut",null,null,null,null,0,null,{"$f":"I60","v":0},0,null,null,0]
[null,"Alkuperäisrodut",null,null,null,null,null,null,{"$f":"ROUNDUP(I70,-2)","v":0}]
[null,"Pesuvedet m3, arvio",null,null,null,400,{"$f":"IF(F16>0,\"m3\",0)","v":"m3"}]
[null,"Sadevedet, arvio",null,null,null,272,{"$f":"IF(F16>0,\"m3\",0)","v":"m3"}]
[null,"Tarvittava varastotilavuus  m3/m2",null,null,null,{"$f":"SUM(F3:F8,F9,F10)","v":3792},{"$f":"IF(F16>0,\"m3\",0)","v":"m3"},null,{"$f":"ROUNDUP(SUM(I3:I8,I9,I10)/1.5,-2)","v":300},null,null,{"$f":"ROUNDUP(SUM(L3:L8,L9,L10)/1.5,-2)","v":0},null,{"$f":"SUM(N3:N8,N9,N10)","v":0}]
[null,"Olemassa oleva varastotilavuus, m3/m2",null,null,null,4100,{"$f":"IF(F16>0,\"m3\",0)","v":"m3"},null,230,null,null,null,null,{"$f":"IF(N16>0,'3.Lietesäiliöt'!D33,0)","v":0}]
[null,"Lisärakentamistarve, m3/m2",null,null,{"$f":"IF(F11-F12<=0,\"Ei lisärakentamistarvetta\",F11-F12)","v":"Ei lisärakentamistarvetta"},null,{"$f":"IF(F16>0,\"m3\",0)","v":"m3"},null,{"$f":"I11-I12","v":70},"m2",null,{"$f":"L11-L12","v":0},"m2",{"$f":"N11-N12","v":0}]
[null,null,null,null,"Lietelanta",null,null,"Kuivikelanta, kuivikepohjalanta",null,null,"Kuivalanta",null,"Virtsa"]
[null,"Eläinlaji","kpl",null,"Lantamäärä","m3",null,"Lantamäärä","m3",null,"Lantamäärä","m3","Lantamäärä","m3"]
[null,"Lypsylehmä (8500  kg) 120 yhteensä, 110 lietelannalla, 10 kuivikepohjalla",110,2,25.5,{"$f":"IF(D16=2,C16*E16,0)","v":2805},null,28.6,286,null,15.8,{"$f":"IF(D16=4,C16*K16,0)","v":0},8.6999999999999993,{"$f":"IF(D16=4,C16*M16,0)","v":0}]
[null,"Emolehmä",{"$f":"'2.Ympäristöluvan tarpeen lasken'!C16","v":0},1,19,{"$f":"IF(D17=2,C17*E17,0)","v":0},null,20.399999999999999,{"$f":"IF(D17=3,C17*H17,0)","v":0},null,16.899999999999999,0,1.9,0]
[null,"Siitossonni (sonni > 2 v)",{"$f":"'2.Ympäristöluvan tarpeen lasken'!C17","v":0},2,25.5,0,null,12.9,0,null,10.1,0,1.7,0]
[null,"Hieho (12–24 kk)16 vanhassa navetassa, 20 ulkokasvatuksessa, 10 kylmäpihatossa kuivikepohjalla",{"$f":"'2.Ympäristöluvan tarpeen lasken'!C18","v":46},3,8.5,{"$f":"16*8.5","v":136},null,13.4,{"$f":"10*H19","v":134},null,6.6,0,2.9,0]
[null,"Lihanauta (sonni 12–24 kk)",null,2,12.1,0,null,12.9,0,null,10.1,0,1.7,0]
[null,"Lehmävasikka 6–12 kk",{"$f":"'2.Ympäristöluvan tarpeen lasken'!C20","v":24},2,7.2,172.8,null,9.6999999999999993,0,null,6.1,0,1.7,0]
[null,"Sonnivasikka 6–12 kk",null,2,9.5,0,null,12.1,0,null,8,{"$f":"IF(D22=4,C22*K22,0)","v":0},2.1,{"$f":"IF(D22=4,C22*M22,0)","v":0}]
[null,"Lehmävasikka < 6 kk   16 kpl kuivikepohjalla, 16 kpl lietelannalla",32,3,3.6,{"$f":"16*3.6","v":57.6},null,6.1,{"$f":"16*6.1","v":97.6},null,3.1,0,1.1000000000000001,0]
[null,"Sonnivasikka < 6 kk",0,1,3.6,0,null,7.1,{"$f":"IF(D24=3,C24*H24,0)","v":0},null,4,0,1.3,0]
[null,"Tarvittava lannan varastointi tilavuus",null,null,null,{"$f":"SUM(F16:F22)","v":3113.8},null,null,{"$f":"SUM(I16:I24)","v":517.6},null,null,{"$f":"SUM(L16:L24)","v":0},null,{"$f":"SUM(N16:N24)","v":0}]
[]
[null," ",null,null,null," "]
[null,"Hevonen yli 2 v",{"$f":"'2.Ympäristöluvan tarpeen lasken'!C25","v":0},3,null,{"$f":"IF(D28=2,0,0)","v":0},null,17,{"$f":"IF(D28=3,C28*H28,0)","v":0}]
[null,"Poni yli 2 v, hevonen 1-2 v (Poni aikuisena 120-140 cm)",{"$f":"'2.Ympäristöluvan tarpeen lasken'!C26","v":0},3,null,{"$f":"IF(D29=2,C29*E29,0)","v":0},null,12,{"$f":"IF(D29=3,C29*H29,0)","v":0}]
[null,"Pienponi yli 2 v, poni 1-2 v, hevonen alle 1 v (pienponi: eläimen säkäkorkeus täysikasvuisena <120 cm)",{"$f":"'2.Ympäristöluvan tarpeen lasken'!C27","v":0},3,null,0,null,8,0]
[null,"Pienponi 1-2 v, poni alle 1v (pienponi: eläimen säkäkorkeus täysikasvuisena <120 cm)",{"$f":"'2.Ympäristöluvan tarpeen lasken'!C28","v":0},3,null,0,null,8,0]
[null,"Pienponi alle 1 v (pienponi: eläimen säkäkorkeus täysikasvuisena <120 cm)",{"$f":"'2.Ympäristöluvan tarpeen lasken'!C29","v":0},3,null,0,null,8,0]
[null,"Tarvittava lannan varastointi tilavuus",null,null,null,null,null,null,{"$f":"SUM(I28:I32)","v":0},null,null,null,null,{"$f":"N68","v":0}]
[null,null,null,null,null," "]
[null,{"$f":"'2.Ympäristöluvan tarpeen lasken'!B31","v":"Lammas ja karitsat sekä pässi"},{"$f":"'2.Ympäristöluvan tarpeen lasken'!C31","v":0},3,null,{"$f":"IF(D35=2,C35*E35,0)","v":0},null,1.3,{"$f":"IF(D35=3,C35*H35,0)","v":0}]
[null,{"$f":"'2.Ympäristöluvan tarpeen lasken'!B32","v":"Vuohi ja kilit sekä pukki"},{"$f":"'2.Ympäristöluvan tarpeen lasken'!C32","v":0},3,null,0,null,1.3,0]
[null,{"$f":"'2.Ympäristöluvan tarpeen lasken'!B33","v":"Karitsat ja kilit 3-9 kk (Kasvatuksessa, kaksi kasvatuserää vuodessa), sis. yllä oleviin lukuihin"},{"$f":"'2.Ympäristöluvan tarpeen lasken'!C33","v":0},3,null,0,null,1.3,0]
[null,{"$f":"'2.Ympäristöluvan tarpeen lasken'!B34","v":"Karitsat ja kilit 6-9 kk (Kasvatuksessa, kaksi kasvatuserää vuodessa), sis. yllä oleviin lukuihin"},{"$f":"'2.Ympäristöluvan tarpeen lasken'!C34","v":0},3,null,0,null,0.6,0]
[null,"Tarvittava lannan varastointi tilavuus",null,null,null,{"$f":"SUM(F35:F36)","v":0},null,null,{"$f":"SUM(I35:I38)","v":0}]
[null,null,null,null,null," "]
[null,"Lihasika",{"$f":"'2.Ympäristöluvan tarpeen lasken'!C36","v":0},1,2.4,{"$f":"IF(D41=2,C41*E41,0)","v":0},null,3,{"$f":"IF(D41=3,C41*H41,0)","v":0},null,1,{"$f":"IF(D41=4,C41*K41,0)","v":0},1.6,{"$f":"IF(D41=4,C41*M41,0)","v":0}]
[null,"Emakko porsaineen, normaali emakkosikala",{"$f":"'2.Ympäristöluvan tarpeen lasken'!C37","v":0},1,9.3000000000000007,0,null,10.7,{"$f":"IF(D42=3,C42*H42,0)","v":0},null,2.2000000000000002,0,6.8,0]
[null,"Emakko porsaineen,  satelliittisikala",{"$f":"'2.Ympäristöluvan tarpeen lasken'!C38","v":0},1,12.7,0,null,15.5,0,null,3.5,0,10.4,0]
[null,"Joutilas emakko ",{"$f":"'2.Ympäristöluvan tarpeen lasken'!C39","v":0},1,3.9,0,null,4.9000000000000004,0,null,1.6,0,2.7,0]
[null,"Vierotettu porsas * 5-11 vk, jos tilalla ei emakoita",{"$f":"'2.Ympäristöluvan tarpeen lasken'!C40","v":0},1,1.2,0,null,1.6,0,null,0.6,0,0.8,0]
[null,"Karju (täysikasvuinen) ",{"$f":"'2.Ympäristöluvan tarpeen lasken'!C41","v":0},1,4.9000000000000004,0,null,6.1,0,null,1.8,0,3.5,0]
[null,"Tarvittava lannan varastointi tilavuus",null,null,null,{"$f":"SUM(F41:F46)","v":0},null,null,{"$f":"SUM(I41:I46)","v":0},null,null,{"$f":"SUM(L41:L46)","v":0},null,{"$f":"SUM(N41:N46)","v":0}]
[null,null,null,null,null," "]
[null,"Broileri (Eläinpaikkaa kohti)",{"$f":"'2.Ympäristöluvan tarpeen lasken'!C43","v":0},3,null,{"$f":"C49*E49","v":0},null,1.4999999999999999E-2,{"$f":"IF(D49=3,C49*H49,0)","v":0}]
[null,"Munituskana",{"$f":"'2.Ympäristöluvan tarpeen lasken'!C44","v":0},3,null,{"$f":"C50*E50","v":0},null,0.04,0]
[null,"Broileriemo",{"$f":"'2.Ympäristöluvan tarpeen lasken'!C45","v":0},3,null,{"$f":"C51*E51","v":0},null,0.06,0]
[null,"Kukko",{"$f":"'2.Ympäristöluvan tarpeen lasken'!C46","v":0},3,null,null,null,0.04,0]
[null,"Emokalkkuna",{"$f":"'2.Ympäristöluvan tarpeen lasken'!C47","v":0},3,null,null,null,0.06,0]
[null,"Lihakalkkuna",{"$f":"'2.Ympäristöluvan tarpeen lasken'!C48","v":0},3,null,null,null,0.06,0]
[null,"Kananuorikko",{"$f":"'2.Ympäristöluvan tarpeen lasken'!C49","v":0},3,null,null,null,0.04,0]
[null,"Emoankka, liha-ankka, emohanhi, emofasaani, lihafasaani",{"$f":"'2.Ympäristöluvan tarpeen lasken'!C50","v":0},3,null,null,null,0.04,0]
[null,"Emosorsa, lihasorsa",{"$f":"'2.Ympäristöluvan tarpeen lasken'!C51","v":0},3,null,null,null,2.5000000000000001E-2,0]
[null,"Viiriäinen, helmikana",{"$f":"'2.Ympäristöluvan tarpeen lasken'!C52","v":0},3,null,null,null,null,0]
[null,"Strutsi",{"$f":"'2.Ympäristöluvan tarpeen lasken'!C53","v":0},3,null,null,null,null,0]
[null,"Tarvittava lannan varastointi tilavuus",null,null,null,null,null,null,{"$f":"SUM(I49:I59)","v":0}]
[]
[null,"Alkuperäisrodut"]
[null,"Lypsylehmä",null,3,null,null,null,22.3,{"$f":"IF(D63=3,C63*H63,0)","v":0}]
[null,"Emolehmä",null,3,null,{"$f":"SUM(F49:F51)","v":0},null,15.9,0]
[null,"Hieho",null,3,null,null,null,11.7,0]
[null,"Sonni",null,3,null,null,null,11.9,0]
[null,"Lehmävasikka 6-12 kk",null,3,null,null,null,8.5,0]
[null,"Sonnivasikka 6-12 kk",null,3,null,null,null,9.4,0]
[null,"Vasikka < 6 kk",null,3,null,null,null,5.3,0]
[null,"Tarvittava lannan varastointi tilavuus",null,null,null,null,null,null,{"$f":"SUM(I63:I69)","v":0}]
[]
[]
[]
[]
[]
[]
[]
[]
[null,null,null,null,null,{"$f":"F71","v":0}]
[null,null,null,null,null,{"$f":"F79/3.9","v":0}]
[null,null,null,null,null,{"$f":"F80/3.14","v":0}]
[null,null,null,null,null,{"$f":"SQRT(F81)","v":0}]

{"sheet":"Sade- ja pesuvesi aputaulukko","index":6,"n_rows":17,"n_cols":15,"rows_kept":17,"cut":false,"hidden":false,"merged":[]}
[]
[null,"Pesuvedet "]
[]
[null,null,null,null,"Pesut navettahallissa",null,null,null,"Lypsykoneen pesu"]
[null,"Lypsylehmä (8500  kg)",{"$f":"'2.Ympäristöluvan tarpeen lasken'!C15","v":120},null,0.02,"M3/PV",{"$f":"C5*E5","v":2.4},null,365,0,0.2,{"$f":"(I5*J5)*K5","v":0},null,null,"50 litraa vettä lypsykoneen pesuun"]
[null,"Emolehmä",{"$f":"'2.Ympäristöluvan tarpeen lasken'!C16","v":0},null,1E-3,null,{"$f":"C6*E6","v":0}]
[null,"Siitossonni (sonni > 2 v)",{"$f":"'2.Ympäristöluvan tarpeen lasken'!C17","v":0},null,0.01,null,0]
[null,"Hieho (12–24 kk)",{"$f":"'2.Ympäristöluvan tarpeen lasken'!C18","v":46},null,0.01,null,0.46]
[null,"Lihanauta (sonni 12–24 kk)",{"$f":"'2.Ympäristöluvan tarpeen lasken'!C19","v":0},null,0.01,null,0]
[null,"Lehmävasikka 6–12 kk",{"$f":"'2.Ympäristöluvan tarpeen lasken'!C20","v":24},null,5.0000000000000001E-3,null,0.12]
[null,"Sonnivasikka 6–12 kk",{"$f":"'2.Ympäristöluvan tarpeen lasken'!C21","v":0},null,5.0000000000000001E-3,null,0]
[null,"Lehmävasikka < 6 kk",{"$f":"'2.Ympäristöluvan tarpeen lasken'!C22","v":32},null,2.5000000000000001E-3,null,0.08]
[null,"Sonnivasikka < 6 kk",{"$f":"'2.Ympäristöluvan tarpeen lasken'!C23","v":0},null,5.0000000000000001E-3,null,0]
[null,null,null,null,null,null,{"$f":"SUM(G5:G13)","v":3.06}]
[null,null,null,null,null,null,0,365]
[null,null,null,null,null,null,{"$f":"G14*G15","v":0},null,null,null,null,{"$f":"L5","v":0}]
[null,"Pesuvedet yhteensä",null,null,null,null,null,null,null,null,null,{"$f":"G16+L16","v":0}]

{"sheet":"Eläinyksikkökertoimet asetus ","index":7,"n_rows":51,"n_cols":2,"rows_kept":51,"cut":false,"hidden":false,"merged":[]}
[]
["Liite 3(19.12.2018/1166)"]
[]
["ELÄINSUOJAN JA TURKISTARHAN LUPA- JA TOIMIVALTARAJAN SEKÄ ELÄINSUOJAN ILMOITUKSENVARAISUUSRAJAN LASKEMISESSA KÄYTETTÄVÄT ELÄINYKSIKKÖKERTOIMET "]
[]
["Taulukko 1. Eläinsuojan ja turkistarhan kokonaiseläinyksikkömäärän laskemiseen käytettävät eläinyksikkökertoimet. Eläinsuojan kokonaiseläinyksikkömäärä saadaan kertomalla eläinsuojan eläinlajien lukumäärät niiden eläinyksikkökertoimilla ja laskemalla saadut eläinyksikkömäärät yhteen. Muiden eläinlajien kohdalla on käytettävä vuotuiselta typeneritykseltään lähinnä vastaavan eläimen eläinyksikkökerrointa."]
[]
["Eläin","Eläinyksikkökerroin"]
["Lypsylehmä",10.8]
["Emolehmä",4.3]
["Hieho (12–24 kk)",4]
["Lihanauta (sonni 12–24 kk)",5.7]
["Siitossonni (sonni > 2 v)",8.1]
["Vasikka 6–12 kk",3.4]
["Vasikka < 6 kk",1.7]
["Emakko porsaineen",2.6]
["Lihasika*",1]
["Karju",1.8]
["Joutilas emakko ydinsikalassa",1.8]
["Vieroitettu porsas, 5–11 vko, jos tilalla ei ole emakoita*",0.24]
["Hevonen 2v–",3.9]
["Poni** 2v–, hevonen 1v",2.8]
["Pienponi** 2v–, poni** 1v, hevonen <1v",2]
["Pienponi **1–2v, poni** <1v",1.2]
["Pienponi** <1v",0.8]
["Aasi (ponin ja pienponin tavoin säkäkorkeuden ja iän mukaan)","0,8–2,8"]
["Lammas (uuhi karitsoineen, pässi)",0.6]
["Vuohi (kuttu kileineen, pukki)",0.6]
["Munituskana",7.0000000000000007E-2]
["Broileriemo",7.0000000000000007E-2]
["Kukko",0.1]
["Emokalkkuna",0.14000000000000001]
["Lihakalkkuna*",0.12]
["Broileri*",0.03]
["Kananuorikko*",0.04]
["Emoankka, liha-ankka*, emohanhi, lihahanhi*, emofasaani, lihafasaani*",7.0000000000000007E-2]
["Emosorsa, lihasorsa*",0.06]
["Viiriäinen, helmikana",0.04]
["Kaninaaras poikasineen***",0.19]
["Strutsi",0.9]
["Biisoni",2.5]
["Villisika",0.9]
["Minkki ja hilleri, siitosnaaras pentuineen",0.18]
["Minkki ja hilleri, pentu"]
["Minkki ja hilleri, siitosuros"]
["Kettu ja supikoira, siitosnaaras pentuineen",0.41]
["Kettu ja supikoira, pentu"]
["Kettu ja supikoira, siitosuros"]
["* eläinpaikkaa kohti"]
["** poni: eläimen säkäkorkeus täysikasvuisena 120–140 cm; pienponi: eläimen säkäkorkeus täysikasvuisena <120 cm"]
["*** Kaninaaraan elopaino noin 5 kg. Poikasien lisäksi kaniuros sisältyy naaraan eläinyksikkökertoimeen"]

{"sheet":"Taulukot","index":8,"n_rows":5,"n_cols":4,"rows_kept":5,"cut":false,"hidden":false,"merged":[]}
[]
[null,null,1," - Valitse lantatyyppi -"]
[null,null,2,"Lietelanta"]
[null,null,3,"Kuivikepohjalantala"]
[null,null,4,"Kuivalanta ja virtsa"]